bitfinex-derivatives/quotes_SOLF0:USTF0_20250228
["timestamp","ask_amount","ask_price","bid_price","bid_amount"]
[1740714836959,190.0,127.56,127.51,0.0587904]
[1740714837154,7.8495,127.52,127.51,0.0587904]
[1740714837456,190.04939361,127.55,127.42,11.8562]
[1740714837656,190.04939361,127.55,127.5,0.05079339]
[1740714837857,190.0,127.55,127.43,7.8551]
[1740714838054,0.05173294,127.54,127.51,0.05757551]
[1740714838351,190.0,127.55,127.43,7.8551]
[1740714838555,0.06024563,127.54,127.51,0.05918241]
[1740714838753,7.8495,127.52,127.51,0.05918241]
[1740714839155,31.3695,127.52,127.51,0.05918241]
[1740714839457,7.8495,127.52,127.51,0.05918241]
[1740714840054,0.05354874,127.54,127.37,2.1025]
[1740714840360,14.5,127.55,127.37,2.1025]
[1740714840655,7.8491,127.53,127.37,2.1025]
[1740714840955,1.9658,127.59,127.38,1.57010519]
[1740714841161,7.8482,127.55,127.48,7.8519]
[1740714841362,0.0598257,127.5,127.49,1.9688]
[1740714841560,1.9147,127.59,127.49,1.9688]
[1740714842258,117.0694397,127.6,127.49,1.9688]
[1740714842450,7.8475,127.56,127.49,1.9688]
[1740714842852,0.05532185,127.54,127.51,0.04985375]
[1740714843057,7.846,127.58,127.51,0.04985375]
[1740714843256,14.5,127.64,127.49,1.9688]
[1740714843257,14.5,127.64,127.49,196.9688]
[1740714843453,7.8447,127.6,127.54,7.8482]
[1740714843760,7.8447,127.6,127.49,196.9688]
[1740714843960,191.9147,127.67,127.49,196.9688]
[1740714844260,7.8435,127.62,127.56,7.8469]
[1740714844465,7.8435,127.62,127.53,0.05340754]
[1740714844659,190.0,127.73,127.53,218.52]
[1740714844855,16.4208,127.72,127.56,0.05248312]
[1740714845362,1.9208,127.72,127.54,3.8872]
[1740714845664,213.28,127.79,127.54,198.8872]
[1740714845965,0.0546688,127.64,127.62,0.05232991]
[1740714846157,14.5,127.76,127.62,0.05232991]
[1740714846362,38.06,127.76,127.57,213.28]
[1740714846560,39.62543519,127.76,127.57,213.28]
[1740714846761,1.38319503,127.75,127.57,213.28]
[1740714846962,191.38319503,127.75,127.54,3.8872]
[1740714847161,16.06543519,127.76,127.54,3.8872]
[1740714847361,1.38324378,127.75,127.54,3.8872]
[1740714847564,0.05044611,127.66,127.63,0.05777746]
[1740714847769,1.9208,127.78,127.63,0.05777746]
[1740714847968,1.9208,127.78,127.62,1.9714]
[1740714849056,0.05839568,127.71,127.69,0.04936464]
[1740714849456,1.9208,127.78,127.62,1.9714]
[1740714849863,0.05419064,127.71,127.69,0.05354257]
[1740714850265,1.9208,127.78,127.62,1.9714]
[1740714850463,0.05122921,127.71,127.69,0.05097148]
[1740714850863,0.05122921,127.71,127.62,1.9714]
[1740714850864,1.9208,127.78,127.62,1.9714]
[1740714851065,0.05357712,127.71,127.69,0.05614427]
[1740714851265,7.8354,127.75,127.69,7.89474427]
[1740714851467,14.48,127.8,127.69,7.8386]
[1740714851668,14.48,127.8,127.63,1.9626]
[1740714851871,14.48,127.8,127.7,7.8383]
[1740714852068,14.48,127.8,127.63,1.9626]
[1740714852366,0.04983297,127.73,127.7,0.05374995]
[1740714852864,7.8389,127.7,127.64,7.8417]
[1740714853068,7.8389,127.7,127.63,1.9626]
[1740714853262,1.9293,127.79,127.66,0.05822555]
[1740714853468,0.0563635,127.68,127.66,0.05822555]
[1740714853670,1.9293,127.79,127.63,1.9626]
[1740714853869,16.4093,127.79,127.66,0.05568923]
[1740714854064,16.4093,127.79,127.63,1.9626]
[1740714854273,2.0447,127.82,127.63,1.9626]
[1740714854469,2.0447,127.82,127.7,7.8379]
[1740714854662,2.0447,127.82,127.63,1.9626]
[1740714855067,0.02959177,127.77,127.75,3.754e-05]
[1740714855263,14.48,127.76,127.63,1.9626]
[1740714855473,7.8404,127.67,127.63,1.9626]
[1740714855667,1.9273,127.75,127.63,1.9626]
[1740714855875,3.9024,127.75,127.63,1.9626]
[1740714856263,0.05292215,127.7,127.68,7.582e-05]
[1740714856469,7.8391,127.69,127.68,7.582e-05]
[1740714856670,14.48,127.7,127.56,3.9121]
[1740714857574,0.05508759,127.64,127.62,0.06004419]
[1740714857976,14.48,127.7,127.56,3.9121]
[1740714858274,0.0600166,127.64,127.62,0.05793474]
[1740714858675,0.0600166,127.64,127.56,3.9121]
[1740714858676,14.48,127.7,127.59,7.8451]
[1740714858875,0.05762013,127.64,127.62,0.05313224]
[1740714859176,14.48,127.7,127.57,1.9894]
[1740714859475,0.05256451,127.64,127.62,0.0571359]
[1740714859872,14.48,127.7,127.57,1.9894]
[1740714860072,0.05018316,127.64,127.62,0.05569312]
[1740714860273,7.8428,127.63,127.62,0.05569312]
[1740714860474,14.48,127.7,127.57,1.9894]
[1740714860675,14.48,127.7,127.61,0.05212299]
[1740714860676,0.04951834,127.64,127.61,0.05212299]
[1740714860872,7.8434,127.62,127.61,0.05212299]
[1740714861171,2.0407,127.68,127.57,1.9894]
[1740714861475,7.844,127.61,127.6,0.05354195]
[1740714861871,0.05080705,127.63,127.57,1.9894]
[1740714862069,0.05080705,127.63,127.52,1.9311]
[1740714862274,191.911,127.67,127.52,1.9311]
[1740714862571,191.911,127.67,127.55,7.8475]
[1740714862966,191.911,127.67,127.52,1.9311]
[1740714863169,191.911,127.67,127.54,7.8482]
[1740714863367,0.05972679,127.61,127.58,0.0587139]
[1740714863777,191.911,127.67,127.55,7.8477]
[1740714863978,191.911,127.67,127.52,1.9311]
[1740714863979,0.05254173,127.61,127.58,0.05747494]
[1740714864185,7.8452,127.59,127.58,7.494e-05]
[1740714864475,190.0,127.62,127.43,14.48]
[1740714864669,7.8475,127.56,127.51,7.8497]
[1740714865071,1.965,127.61,127.51,7.8497]
[1740714865277,7.8492,127.53,127.44,1.9247]
[1740714865574,0.05619566,127.57,127.55,5.391e-05]
[1740714865776,190.0,127.6,127.46,7.8531]
[1740714865975,192.0656,127.59,127.46,7.8531]
[1740714866175,2.0656,127.59,127.46,7.8531]
[1740714866878,0.04974278,127.54,127.51,0.06001719]
[1740714867278,0.04974278,127.54,127.45,3.8489]
[1740714867579,191.9754,127.58,127.45,3.8489]
[1740714867782,0.06013973,127.51,127.49,7.8511]
[1740714867990,190.0,127.58,127.48,0.05645025]
[1740714868274,7.8515,127.49,127.45,11.7025]
[1740714868469,14.48,127.56,127.45,3.8489]
[1740714868677,190.0,127.55,127.45,1.9217]
[1740714868977,190.0,127.54,127.4,2.0003]
[1740714869174,0.05111706,127.51,127.49,0.05425385]
[1740714869374,1.9158,127.53,127.4,2.0003]
[1740714869581,1.9158,127.53,127.49,0.05971021]
[1740714869775,190.0,127.54,127.49,0.05971021]
[1740714869776,7.90298814,127.51,127.49,0.05971021]
[1740714869980,7.90298814,127.51,127.46,7.8532]
[1740714870183,7.90298814,127.51,127.49,0.05151207]
[1740714871081,0.05238814,127.51,127.49,0.05151207]
[1740714871482,7.8508,127.5,127.49,0.05151207]
[1740714871882,7.8508,127.5,127.49,0.00188422]
[1740714872084,7.90268814,127.51,127.49,0.00188422]
[1740714872276,0.05238814,127.51,127.49,0.00188422]
[1740714873185,7.8487,127.54,127.49,0.00188422]
[1740714873483,7.8487,127.54,127.49,7.8508]
[1740714873978,7.8479,127.55,127.43,14.48]
[1740714874184,0.05550078,127.53,127.5,0.05520707]
[1740714874381,7.8479,127.55,127.5,0.05520707]
[1740714874579,0.05671865,127.53,127.5,0.05520707]
[1740714874780,1.8966,127.6,127.43,14.48]
[1740714874982,0.05685477,127.53,127.5,0.05458838]
[1740714875376,190.0,127.58,127.41,2.0495]
[1740714875582,0.05648748,127.53,127.5,0.05862147]
[1740714875776,7.8502,127.51,127.5,0.05862147]
[1740714875981,0.05648748,127.53,127.45,7.8535]
[1740714876181,0.05648748,127.53,127.49,0.0583286]
[1740714876377,190.0,127.58,127.49,0.0583286]
[1740714876583,0.05980199,127.52,127.49,0.0583286]
[1740714876776,190.0,127.58,127.41,2.0495]
[1740714876982,1.8966,127.6,127.49,0.05661951]
[1740714876983,7.8511,127.5,127.49,0.05661951]
[1740714877179,7.8511,127.5,127.41,2.0495]
[1740714877483,7.8508,127.5,127.48,0.05283565]
[1740714877682,14.48,127.54,127.4,2.0003]
[1740714877982,0.04989257,127.5,127.48,0.05580032]
[1740714878180,0.04989257,127.5,127.4,3.9969]
[1740714878376,1.8964,127.52,127.4,3.9969]
[1740714878783,1.8964,127.52,127.43,7.8549]
[1740714879284,0.05372411,127.49,127.46,0.0571769]
[1740714879480,0.05372411,127.49,127.28,226.70727484]
[1740714879684,1.38978377,127.51,127.29,6.0934]
[1740714879885,2.9582882,127.51,127.29,6.0934]
[1740714880090,1.38978377,127.5,127.29,6.0934]
[1740714880489,7.8574,127.4,127.29,6.0934]
[1740714880693,0.05313372,127.41,127.38,0.0578627]
[1740714880987,14.48,127.45,127.38,0.05848051]
[1740714881191,0.05107776,127.41,127.38,0.05848051]
[1740714881690,7.858,127.39,127.38,0.05848051]
[1740714881889,0.05107776,127.41,127.38,0.05848051]
[1740714882291,7.90737776,127.41,127.38,0.05848051]
[1740714882585,0.05107776,127.41,127.38,0.05848051]
[1740714882991,190.0,127.49,127.38,0.05848051]
[1740714883195,16.4316,127.52,127.32,14.48]
[1740714883383,7.8556,127.43,127.32,14.48]
[1740714883587,190.0,127.51,127.32,14.48]
[1740714883788,190.0,127.51,127.39,7.8571]
[1740714884091,0.05813359,127.46,127.44,0.0573108]
[1740714884292,7.8547,127.44,127.32,14.48]
[1740714884588,190.0,127.51,127.32,14.48]
[1740714884892,16.4316,127.52,127.37,0.05198388]
[1740714884893,0.05590623,127.39,127.37,0.05198388]
[1740714885094,192.0392,127.5,127.37,0.05818769]
[1740714885285,0.0557112,127.39,127.32,14.48]
[1740714885485,7.8563,127.41,127.36,7.8592]
[1740714885689,0.05266228,127.37,127.36,7.8592]
[1740714885891,192.0392,127.5,127.37,0.05829458]
[1740714886083,7.8558,127.42,127.32,14.48]
[1740714886285,0.05333334,127.42,127.4,0.0586125]
[1740714886495,2.0392,127.5,127.32,14.48]
[1740714886795,0.05697628,127.42,127.4,0.05286588]
[1740714886992,2.0392,127.5,127.32,14.48]
[1740714887187,7.8563,127.41,127.4,0.05314914]
[1740714887394,190.0,127.49,127.32,14.48]
[1740714887596,0.05734552,127.42,127.39,0.05183778]
[1740714887796,7.8551,127.43,127.38,7.8576]
[1740714887996,7.8551,127.43,127.39,0.0494522]
[1740714887997,0.04965767,127.42,127.39,0.0494522]
[1740714888996,0.04965767,127.42,127.39,7.9069522]
[1740714889398,0.04965767,127.42,127.39,0.0494522]
[1740714890401,0.04965767,127.42,127.39,7.9067522]
[1740714891202,0.04965767,127.42,127.4,7.8568]
[1740714891594,0.04965767,127.42,127.39,0.0494522]
[1740714892401,2.0392,127.5,127.39,23.5894522]
[1740714892600,2.0392,127.5,127.38,4.097]
[1740714892899,2.0392,127.5,127.42,7.8556]
[1740714893400,2.0392,127.5,127.38,4.097]
[1740714893700,0.05832075,127.47,127.45,0.0580022]
[1740714894305,7.8532,127.46,127.45,0.0580022]
[1740714894905,7.91122075,127.47,127.45,0.0580022]
[1740714895811,0.05832075,127.47,127.45,0.0580022]
[1740714896312,7.8532,127.46,127.45,0.0580022]
[1740714897806,0.05832075,127.47,127.45,0.0580022]
[1740714898103,7.91122075,127.47,127.45,0.0580022]
[1740714898309,0.05832075,127.47,127.45,0.0580022]
[1740714898612,0.05832075,127.47,127.45,7.9118022]
[1740714899012,0.05832075,127.47,127.46,7.8532]
[1740714899813,0.05832075,127.47,127.45,0.0580022]
[1740714900411,7.8532,127.46,127.45,0.0580022]
[1740714900613,0.05832075,127.47,127.45,0.0580022]
[1740714901809,7.8532,127.46,127.45,0.0580022]
[1740714902612,7.91112075,127.47,127.45,0.0580022]
[1740714903009,0.05832075,127.47,127.45,7.9118022]
[1740714903210,3.9244,127.54,127.45,0.0580022]
[1740714903615,3.9244,127.54,127.4,14.48]
[1740714903813,7.8522,127.48,127.4,14.48]
[1740714904018,3.9244,127.54,127.4,14.48]
[1740714904312,3.9244,127.54,127.39,2.0807]
[1740714904313,7.8536,127.46,127.39,2.0807]
[1740714904509,0.05687784,127.48,127.46,0.05656026]
[1740714904710,14.48,127.5,127.39,2.0807]
[1740714904912,7.8553,127.43,127.39,2.0807]
[1740714905215,7.8553,127.43,127.39,9.9378]
[1740714905810,0.05291817,127.42,127.4,0.05515025]
[1740714906011,7.8547,127.44,127.39,2.0807]
[1740714906212,0.05345149,127.42,127.4,0.05237442]
[1740714907616,7.8563,127.41,127.4,0.05237442]
[1740714908211,0.05345149,127.42,127.4,0.05237442]
[1740714909011,1.9754,127.49,127.4,0.05237442]
[1740714909218,2.0902,127.53,127.35,16.524]
[1740714909919,1.9711,127.54,127.35,40.084]
[1740714910213,0.05911301,127.46,127.43,0.05506418]
[1740714910417,0.05911301,127.46,127.35,2.044]
[1740714910620,4.0758,127.47,127.35,2.044]
[1740714911417,4.0758,127.47,127.35,9.9039]
[1740714911612,0.05565464,127.42,127.4,0.05064181]
[1740714911814,7.8539,127.45,127.4,0.05064181]
[1740714912021,4.0758,127.47,127.4,0.05064181]
[1740714912418,7.8545,127.44,127.4,0.05064181]
[1740714912720,7.8545,127.44,127.35,2.044]
[1740714912721,0.05839063,127.45,127.35,16.524]
[1740714912916,14.48,127.51,127.41,0.05203411]
[1740714913214,14.48,127.51,127.35,16.524]
[1740714913419,7.8552,127.43,127.38,7.8577]
[1740714913620,14.48,127.51,127.42,0.05830382]
[1740714913815,14.48,127.51,127.35,16.524]
[1740714914019,7.8553,127.43,127.38,7.8577]
[1740714914319,7.8553,127.43,127.42,0.05787434]
[1740714914512,0.04996676,127.42,127.35,16.524]
[1740714914712,7.90566676,127.42,127.41,0.05246528]
[1740714914915,7.90566676,127.42,127.35,16.524]
[1740714914916,7.90566676,127.42,127.4,0.05295127]
[1740714915121,0.04996676,127.42,127.35,16.524]
[1740714915321,0.04996676,127.42,127.4,0.05151465]
[1740714915621,0.04996676,127.42,127.4,0.04991274]
[1740714916023,307.13708108,127.53,127.4,0.04991274]
[1740714916024,7.853,127.47,127.4,0.04991274]
[1740714916323,117.13708108,127.53,127.35,235.084]
[1740714916622,12.33123252,127.54,127.47,7.8525]
[1740714916812,12.33123252,127.54,127.42,14.48]
[1740714917014,12.33123252,127.54,127.43,4.0163]
[1740714917218,0.05018318,127.49,127.47,0.06019774]
[1740714917613,12.33123252,127.54,127.47,0.06019774]
[1740714917819,0.05898766,127.49,127.47,0.06019774]
[1740714918019,12.33123252,127.54,127.47,0.06019774]
[1740714918322,12.33123252,127.54,127.36,195.0]
[1740714918516,12.33123252,127.54,127.39,7.8575]
[1740714918723,12.33123252,127.54,127.37,4.0163]
[1740714918724,2.0843,127.54,127.37,4.0163]
[1740714918924,2.0843,127.54,127.4,7.8568]
[1740714919121,2.0843,127.54,127.37,4.0163]
[1740714919416,0.0495668,127.48,127.46,0.05049113]
[1740714919620,2.0843,127.54,127.41,14.48]
[1740714919818,128.05493681,127.64,127.46,0.05219168]
[1740714920013,7.8492,127.53,127.41,14.48]
[1740714920321,14.48,127.59,127.52,0.05594467]
[1740714920517,14.48,127.59,127.44,3.9536]
[1740714920518,0.05643829,127.48,127.44,3.9536]
[1740714920713,7.849,127.53,127.44,3.9536]
[1740714920923,16.5631,127.59,127.44,3.9536]
[1740714921122,16.5631,127.59,127.45,1.9319]
[1740714921717,16.5631,127.59,127.47,7.8526]
[1740714921920,0.05786742,127.53,127.51,0.05619669]
[1740714922118,7.8495,127.52,127.51,0.05619669]
[1740714922325,16.5631,127.59,127.45,1.9319]
[1740714922524,16.5631,127.59,127.5,0.05199986]
[1740714922525,0.05692626,127.53,127.5,0.05199986]
[1740714922823,7.8499,127.52,127.45,1.9319]
[1740714923020,7.8499,127.52,127.5,0.05236346]
[1740714923220,7.8499,127.52,127.45,1.9319]
[1740714923420,7.8507,127.51,127.5,0.05179688]
[1740714923621,7.8507,127.51,127.45,1.9319]
[1740714923822,0.05678727,127.52,127.45,1.9319]
[1740714924022,16.5631,127.59,127.49,0.05909365]
[1740714924221,0.05291913,127.5,127.49,0.05909365]
[1740714924422,16.5631,127.59,127.45,1.9319]
[1740714924714,0.04943799,127.51,127.45,1.9319]
[1740714924922,16.5631,127.59,127.51,0.05133522]
[1740714925122,7.8485,127.54,127.45,1.9319]
[1740714925524,7.8485,127.54,127.5,7.8507]
[1740714925822,2.0831,127.59,127.45,1.9319]
[1740714926022,0.05135098,127.53,127.51,0.05520378]
[1740714926331,2.0831,127.59,127.45,1.9319]
[1740714926523,0.0600904,127.53,127.51,0.05208647]
[1740714926725,7.8465,127.57,127.52,7.8492]
[1740714926920,2.0831,127.59,127.45,196.9319]
[1740714927121,0.0574595,127.56,127.53,8.291e-05]
[1740714927325,7.8483,127.54,127.53,8.291e-05]
[1740714927728,31.3683,127.54,127.53,8.291e-05]
[1740714928731,33.4608,127.54,127.53,8.291e-05]
[1740714929432,25.6125,127.54,127.4,3.9673]
[1740714929622,191.9957,127.53,127.4,3.9673]
[1740714930021,2.0492,127.52,127.4,3.9673]
[1740714930423,2.0925,127.54,127.4,12.15810496]
[1740714930624,2.0925,127.54,127.46,7.8528]
[1740714930830,2.0925,127.54,127.45,0.05846755]
[1740714931026,14.46,127.56,127.47,7.8522]
[1740714931228,14.46,127.56,127.48,1.9082]
[1740714931931,7.8506,127.51,127.48,1.9082]
[1740714932131,0.05039714,127.53,127.51,0.05043888]
[1740714932430,0.05039714,127.53,127.42,14.46]
[1740714932630,0.05039714,127.53,127.51,0.05283629]
[1740714932829,7.8524,127.48,127.43,9.7633]
[1740714933133,14.46,127.56,127.43,1.9082]
[1740714933325,14.46,127.56,127.44,0.05620573]
[1740714933529,7.907564,127.47,127.43,1.9082]
[1740714933730,14.46,127.56,127.43,1.9082]
[1740714933931,0.05422647,127.46,127.44,0.05168919]
[1740714934131,7.8534,127.46,127.43,1.9082]
[1740714934336,0.05319995,127.46,127.44,0.05746231]
[1740714935732,204.46,127.56,127.44,0.05746231]
[1740714935930,14.46,127.56,127.44,0.05746231]
[1740714936132,14.46,127.56,127.43,1.9082]
[1740714936527,14.46,127.56,127.4,3.9673]
[1740714936733,190.0,127.55,127.4,3.9673]
[1740714936935,0.0564447,127.49,127.47,0.05256346]
[1740714937125,0.0564447,127.49,127.4,3.9673]
[1740714937126,190.0,127.55,127.4,3.9673]
[1740714937330,190.0,127.54,127.47,0.05272419]
[1740714937634,0.05303862,127.49,127.41,7.8559]
[1740714937830,1.9536,127.53,127.49,0.05102301]
[1740714938035,1.9536,127.53,127.4,3.9673]
[1740714938239,0.06028244,127.46,127.4,3.9673]
[1740714938834,1.9536,127.53,127.4,3.9673]
[1740714939027,1.9536,127.53,127.4,198.9673]
[1740714939232,7.8496,127.52,127.4,207.15778366]
[1740714939437,2.0492,127.57,127.4,207.15778366]
[1740714940030,2.0492,127.57,127.47,0.05414951]
[1740714940031,0.05148388,127.5,127.47,0.05414951]
[1740714940532,2.0492,127.57,127.4,207.15778366]
[1740714940734,0.05415059,127.5,127.48,7.8519]
[1740714941034,2.0492,127.57,127.43,14.46]
[1740714941236,0.05940826,127.5,127.48,0.05821284]
[1740714941735,0.05804724,127.5,127.48,0.05730003]
[1740714942935,7.8514,127.49,127.48,0.05730003]
[1740714945139,7.90904724,127.5,127.48,0.05730003]
[1740714946739,0.05804724,127.5,127.48,0.05730003]
[1740714947340,42.88755838,127.58,127.48,0.05730003]
[1740714947540,42.88755838,127.58,127.48,2.0661]
[1740714948342,1.9957,127.58,127.48,2.0661]
[1740714948537,0.04797154,127.54,127.48,2.0661]
[1740714948742,0.04797154,127.54,127.51,0.05759093]
[1740714949345,7.8495,127.52,127.51,0.05759093]
[1740714949833,7.853,127.47,127.43,7.855]
[1740714950037,1.9621,127.53,127.42,4.0149]
[1740714950241,3.9867,127.53,127.42,1.9488]
[1740714950840,7.8549,127.44,127.42,1.9488]
[1740714951243,7.8549,127.44,127.42,1.99819556]
[1740714951441,7.90701733,127.44,127.42,1.99819556]
[1740714953345,0.05211733,127.44,127.42,1.99819556]
[1740714954649,3.9867,127.53,127.42,1.99819556]
[1740714954948,14.46,127.54,127.42,1.9488]
[1740714955747,14.46,127.54,127.47,0.05962949]
[1740714955748,0.05344514,127.49,127.47,0.05962949]
[1740714955950,14.46,127.54,127.47,0.05962949]
[1740714956449,7.8512,127.5,127.47,0.05962949]
[1740714957049,18.09483252,127.55,127.47,0.05962949]
[1740714957250,10.24693252,127.55,127.47,1.9939]
[1740714957446,10.24693252,127.6,127.47,1.9939]
[1740714958154,7.8483,127.54,127.52,0.05389267]
[1740714958353,7.8483,127.54,127.47,1.9939]
[1740714958546,7.8483,127.54,127.52,0.05125595]
[1740714958746,7.8483,127.54,127.49,7.851]
[1740714958949,7.8483,127.54,127.52,0.05658765]
[1740714959146,7.8483,127.54,127.47,1.9939]
[1740714959650,10.24693252,127.6,127.49,0.05313375]
[1740714959846,6.0784,127.61,127.47,3.9205]
[1740714960043,6.0784,127.61,127.53,0.05446838]
[1740714960245,6.0784,127.61,127.47,3.9205]
[1740714960541,6.0784,127.61,127.48,14.44]
[1740714960743,7.8466,127.57,127.53,0.05797447]
[1740714960955,7.8466,127.57,127.48,14.44]
[1740714961146,7.8445,127.61,127.54,0.05098851]
[1740714961456,4.116,127.65,127.56,0.04958148]
[1740714961648,4.116,127.65,127.48,209.44]
[1740714961845,4.116,127.65,127.59,0.05059953]
[1740714962053,4.116,127.65,127.48,209.44]
[1740714962248,4.116,127.65,127.61,0.05184718]
[1740714962549,4.116,127.65,127.49,1.9725]
[1740714962745,4.116,127.65,127.62,0.05370576]
[1740714962955,12.18943252,127.66,127.49,196.9725]
[1740714963254,10.24693252,127.66,127.62,0.05301607]
[1740714963454,10.24693252,127.66,127.56,14.44]
[1740714963655,117.00606461,127.67,127.57,5.8188]
[1740714963954,7.8406,127.67,127.61,0.05977637]
[1740714964156,10.24693252,127.68,127.61,0.05977637]
[1740714964356,10.24693252,127.68,127.62,7.8433]
[1740714964750,10.24693252,127.68,127.64,0.05554465]
[1740714964951,10.24693252,127.68,127.57,414.1988]
[1740714965252,10.24693252,127.68,127.65,0.05926556]
[1740714965454,10.24693252,127.68,127.58,1.56764383]
[1740714965654,7.09273252,127.68,127.65,0.05944008]
[1740714965855,111.67786925,127.69,127.63,14.44]
[1740714966053,102.21796925,127.69,127.65,0.05272434]
[1740714966355,92.65676925,127.69,127.65,0.05272434]
[1740714966551,80.63006925,127.69,127.65,23.55272434]
[1740714966755,29.19734176,127.69,127.65,23.55272434]
[1740714966951,210.78902399,127.71,127.65,23.55272434]
[1740714966952,3.8977,127.76,127.65,23.55272434]
[1740714967257,2.0646,127.82,127.63,14.44]
[1740714967454,2.0646,127.82,127.69,0.0564395]
[1740714967455,3.9791,127.82,127.69,0.0564395]
[1740714967656,5.9582,127.82,127.69,213.3]
[1740714967955,5.9582,127.82,127.74,0.05745277]
[1740714968352,5.9582,127.82,127.71,7.8373]
[1740714968656,5.9582,127.82,127.77,0.05781696]
[1740714969855,7.8323,127.8,127.77,0.05781696]
[1740714970057,3.8726,127.85,127.77,0.05781696]
[1740714970261,3.8726,127.85,127.7,14.42]
[1740714970554,3.8726,127.85,127.77,0.05018248]
[1740714970751,3.8726,127.85,127.7,14.42]
[1740714970951,3.8726,127.85,127.8,0.05375591]
[1740714971152,7.8317,127.81,127.8,0.05375591]
[1740714971456,3.8726,127.85,127.81,0.04979638]
[1740714971651,3.8726,127.85,127.7,14.42]
[1740714971858,7.8337,127.78,127.73,7.8362]
[1740714972057,3.8726,127.85,127.7,14.42]
[1740714972554,18.2926,127.85,127.7,14.42]
[1740714972752,7.8364,127.74,127.7,14.42]
[1740714972955,0.04979638,127.79,127.7,14.42]
[1740714973154,18.2926,127.85,127.71,0.05661023]
[1740714973346,0.04979638,127.76,127.71,7.89391023]
[1740714973552,18.2926,127.85,127.69,213.3]
[1740714973754,18.2926,127.85,127.72,0.05837006]
[1740714973954,0.04979638,127.75,127.69,213.3]
[1740714974154,18.2926,127.85,127.69,213.3]
[1740714974349,3.8726,127.85,127.77,0.0576441]
[1740714974559,0.04979638,127.78,127.77,0.0576441]
[1740714974753,3.8726,127.85,127.75,14.42]
[1740714976060,3.8726,127.85,127.79,0.05797373]
[1740714976358,3.8726,127.85,127.7,14.4]
[1740714976655,7.8344,127.77,127.72,7.8368]
[1740714976847,3.8726,127.85,127.7,14.4]
[1740714977452,0.05719318,127.79,127.7,14.4]
[1740714977655,0.05719318,127.79,127.76,0.05316535]
[1740714977856,7.8328,127.8,127.75,7.8352]
[1740714978049,0.05619779,127.79,127.76,0.05409383]
[1740714978562,0.0527414,127.79,127.76,0.05409383]
[1740714980160,7.8342,127.77,127.76,0.05409383]
[1740714980762,7.8337,127.78,127.76,0.05409383]
[1740714981560,7.8858414,127.79,127.76,0.05409383]
[1740714981761,0.0527414,127.79,127.76,0.05409383]
[1740714983164,3.8726,127.85,127.76,23.53409383]
[1740714983363,3.8726,127.85,127.76,0.05409383]
[1740714983566,11.7019,127.85,127.79,7.8326]
[1740714983766,11.7019,127.85,127.75,14.4]
[1740714983966,3.8726,127.85,127.75,14.4]
[1740714984162,3.8726,127.85,127.77,7.834]
[1740714984371,3.8726,127.85,127.79,0.05790775]
[1740714984862,7.8311,127.82,127.79,0.05790775]
[1740714985064,3.8726,127.85,127.79,0.05790775]
[1740714985284,7.8323,127.8,127.79,0.05790775]
[1740714985465,3.8726,127.85,127.79,0.05790775]
[1740714987365,7.8323,127.8,127.79,0.05790775]
[1740714987764,3.8726,127.85,127.69,213.3]
[1740714988173,1.38839762,127.84,127.69,213.3]
[1740714988375,7.8371,127.73,127.69,213.3]
[1740714988978,7.838,127.71,127.7,0.05953315]
[1740714989175,0.05287173,127.72,127.7,0.05953315]
[1740714989377,192.0506,127.82,127.64,1.56690692]
[1740714989577,0.05689608,127.72,127.7,7.89739238]
[1740714990078,192.0506,127.82,127.69,7.8391]
[1740714990268,0.05293252,127.72,127.7,0.05939201]
[1740714990472,192.0506,127.82,127.64,1.56690692]
[1740714990669,0.05948332,127.72,127.7,0.05857465]
[1740714990975,192.0506,127.82,127.64,1.56690692]
[1740714991171,0.05339547,127.72,127.7,0.05374217]
[1740714991378,9.547e-05,127.72,127.7,0.05374217]
[1740714991578,2.0506,127.82,127.7,23.5]
[1740714991878,2.0506,127.82,127.69,14.4]
[1740714992576,7.8348,127.77,127.74,0.05233489]